Cogmind - Beta 12 @@@ ROGUE MODE // 2023.05.11 @ 19:25:48 Player: dhtilly Result: Escaped! Performance ------------- Evolutions (9) 4500 Regions Visited (29) 5800 Robots Destroyed (351) 1755 Value Destroyed (13823) 13823 Prototype IDs (59) 1180 Alien Tech Used (3) 600 Bonus (8218) 8218 TOTAL SCORE: 35876 Bonus ------- High Alert Combat Kills 1380 Follower Combat Kills 503 Met Data Miner 300 Met Warlord at Base 500 MAIN.C Attacked Warlord 500 Warlord Defense Kills 654 Met Warlord at Research 2000 Win 3000 Friendly Fire -619 Cogmind --------- Core Integrity 1515/1600 Matter 267/300 Energy 70/700 System Corruption 8% Temperature Cool (14) Movement Treading (155) Location To Epsilon Eridani Parts ------- > --- POWER (2) -------- Vortex Chain Reactor > --- PROPULSION (6) --- Biometal Heavy Treads Enhanced Armored Heavy Treads Advanced Heavy Siege Treads > --- UTILITY (14) ----- Advanced Cooling System Advanced Cooling System Huge Storage Unit Advanced Signal Interpreter Advanced Targeting Computer Experimental Targeting Computer Quantum Capacitor Layered Medium Armor Plating Advanced Force Field System Mapper Improved Corruption Screen > --- WEAPON (4) ------- Heavy Disruptor Cannon (fused) Enhanced Nova Cannon Linear Accelerator > --- INVENTORY (25) --- Reinforced Antimatter Reactor Quantum Reactor Armored Heavy Treads Centrium Heavy Treads Advanced Heavy Siege Treads Centrium Wheel Centrium Wheel Energy Well (350) Improved Matter Compressor (300) Advanced Trap Extractor (7/8 Dirty Bomb) Improved Field Recycling Unit (134) Compact HERF Cannon Compact HERF Cannon Smartbomb Launcher Micro-nuke Launcher Dirty Datajack (19) Peak State ------------ > --- POWER ------------ Vortex Chain Reactor > --- PROPULSION ------- Biometal Heavy Treads Enhanced Armored Heavy Treads Advanced Heavy Siege Treads > --- UTILITY ---------- Advanced Cooling System Advanced Cooling System Huge Storage Unit Makeshift Sensor Array Advanced Signal Interpreter Advanced Targeting Computer Experimental Targeting Computer Energy Filter Quantum Capacitor Layered Medium Armor Plating Advanced Force Field System Mapper Improved Corruption Screen > --- WEAPON ----------- Heavy Disruptor Cannon Compact HERF Cannon Enhanced Nova Cannon > --- INVENTORY -------- Reinforced Antimatter Reactor Quantum Reactor Armored Heavy Treads Centrium Heavy Treads Advanced Heavy Siege Treads Centrium Wheel Centrium Wheel Energy Well Improved Matter Compressor Advanced Trap Extractor Improved Field Recycling Unit Compact HERF Cannon Linear Accelerator Smartbomb Launcher Micro-nuke Launcher Dirty Datajack [Rating: 201] Favorites ----------- Power Reinforced Fission Core Engine Heavy Ion Engine Power Core Reinforced Fission Core Reactor Vortex Chain Reactor Propulsion Improved VTOL Module Treads Improved Treads Leg Myomer Leg Wheel Wheel Hover Unit Antigrav System Flight Unit Improved VTOL Module Utility Advanced Signal Interpreter Device Makeshift Sensor Array Storage Large Storage Unit Processor Advanced Signal Interpreter Hackware Hacking Suite Protection Hardened Heavy Armor Plating Weapon Compact HERF Cannon Energy Gun Improved EM Shotgun Energy Cannon Compact HERF Cannon Ballistic Gun Enhanced Autogun Ballistic Cannon Hardcell Cannon Launcher Rocket Launcher Special Weapon Molecular Deconstructor Impact Weapon Impact Mace Slashing Weapon Chainsword Piercing Weapon Spear Special Melee Weapon Dirty Datajack Build | -11 -10 -10 -9 -9 -8 -8 -7 -7 -7 -7 -7 -7 -6 -6 -6 -6 -5 -5 -5 -5 -4 -4 -4 -4 -4 -3 -3 -2 -1 ------- Run | Jun Mat Min Mat Min Mat Sto Fac Was Fac Low Low Dat Pro Fac Low Low Fac Upp Upp Zhi Pro Fac Upp Upp War Pro Res Res Acc Slots Evolved 18 | . . . 2 . 2 . 2 . . . . . . 2 . . 2 . . . . 2 . . . . 2 2 2 Power 1 | . . . . . . . . . . . . . . . . . . . . . . . . . . . 1 . . Propulsion 4 | . . . . . 2 . 1 . . . . . . . . . 1 . . . . . . . . . . . . Utility 12 | . . . 1 . . . 1 . . . . . . 2 . . 1 . . . . 2 . . . . 1 2 2 Weapon 1 | . . . 1 . . . . . . . . . . . . . . . . . . . . . . . . . . Parts Attached 492 | 6 12 11 39 14 30 33 12 5 21 1 . 1 16 28 5 1 20 . 5 4 13 28 11 29 20 5 34 41 47 Power 38 | 1 . 1 5 . 3 2 2 . 1 . . . . 3 . . 2 . 1 . 1 4 1 3 1 . 3 4 . Engine 12 | 1 . 1 5 . 3 . . . . . . . . . . . . . . . . 1 . 1 . . . . . Core 19 | . . . . . . 2 2 . 1 . . . . 3 . . 2 . 1 . 1 2 1 2 1 . 1 . . Reactor 7 | . . . . . . . . . . . . . . . . . . . . . . 1 . . . . 2 4 . Propulsion 94 | 2 1 2 8 2 7 11 2 . 1 . . . . 5 . . 4 . 1 . 1 7 5 5 6 . 10 12 2 Treads 49 | 2 1 . 8 2 6 4 . . . . . . . . . . . . . . . . . 3 5 . 4 12 2 Leg 2 | . . . . . . . . . . . . . . . . . . . . . . . 2 . . . . . . Wheel 10 | . . 2 . . . . . . . . . . . . . . . . . . . . . 1 1 . 6 . . Hover 1 | . . . . . . . . . . . . . . . . . . . . . . . . 1 . . . . . Flight 32 | . . . . . 1 7 2 . 1 . . . . 5 . . 4 . 1 . 1 7 3 . . . . . . Utility 179 | 1 4 4 7 5 4 6 3 . 11 . . . 1 14 4 . 10 . 2 4 11 12 2 11 9 5 11 17 21 Device 116 | . 2 3 3 2 1 2 1 . 11 . . . 1 10 4 . 6 . 1 4 8 9 2 4 4 5 8 10 15 Storage 13 | 1 1 . 1 . . 2 . . . . . . . . . . . . . . . 1 . 3 . . . 1 3 Processor 16 | . . 1 . . 1 . 2 . . . . . . 1 . . 1 . . . . 1 . 3 4 . 1 . 1 Hackware 9 | . . . . . . 1 . . . . . . . 3 . . 2 . . . 1 1 . . . . . . 1 Protection 25 | . 1 . 3 3 2 1 . . . . . . . . . . 1 . 1 . 2 . . 1 1 . 2 6 1 Artifact . | . . . . . . . . . . . . . . . . . . . . . . . . . . . . . . Weapon 181 | 2 7 4 19 7 16 14 5 5 8 1 . 1 15 6 1 1 4 . 1 . . 5 3 10 4 . 10 8 24 Energy Gun 35 | 1 3 2 12 4 3 1 . . . . . . . . . . . . . . . . . . 3 . 6 . . Energy Cannon 28 | . 1 . 1 . . . . . . . . . . . . . . . . . . 2 . . . . . 7 17 Ballistic Gun 42 | 1 1 . 5 . 11 7 4 . 1 . . 1 5 . . . 3 . . . . 2 . . 1 . . . . Ballistic Cannon 10 | . . . . . . . . . . . . . . . . . . . 1 . . . . 1 . . 2 1 5 Launcher 29 | . 2 2 1 3 1 1 . 5 1 . . . 4 3 . . . . . . . 1 2 . . . 2 . 1 Special Weapon 1 | . . . . . . . . . . . . . 1 . . . . . . . . . . . . . . . . Impact Weapon 15 | . . . . . 1 5 . . 1 1 . . 4 2 1 . . . . . . . . . . . . . . Slashing Weapon 7 | . . . . . . . 1 . 1 . . . . 1 . . 1 . . . . . 1 2 . . . . . Piercing Weapon 2 | . . . . . . . . . . . . . . . . . . . . . . . . 2 . . . . . Special Melee Weapon 12 | . . . . . . . . . 4 . . . 1 . . 1 . . . . . . . 5 . . . . 1 Unidentified Prototypes 35 | . . . 7 . 5 1 2 . . . . . 1 3 . . 2 . . 2 . 2 . . 5 . 1 3 1 Corrupted Parts 3 | . . . . . . . . . . . . . . . . . . . . . . . . . . . . 3 . System Corruption 14 | . . . . . . . . . . . . . . . . . . . . . . . . . . . . 14 . Parts Lost 83 | . 4 2 . 7 3 2 . . 1 . . . 3 2 . . 2 . . . 1 21 . 9 3 . 14 4 5 Power 8 | . 1 . . . . . . . . . . . . . . . . . . . 1 2 . 3 . . 1 . . Propulsion 24 | . 1 2 . 2 . 2 . . . . . . . . . . . . . . . 10 . 3 2 . 2 . . Utility 29 | . 1 . . 1 . . . . . . . . 1 2 . . . . . . . 7 . 3 1 . 7 2 4 Weapon 22 | . 1 . . 4 3 . . . 1 . . . 2 . . . 2 . . . . 2 . . . . 4 2 1 Highest Loss Streak 7 | . 4 2 . 4 1 1 . . 1 . . . 2 1 . . 2 . . . 1 6 . 4 3 . 7 1 2 To Critical Strikes 1 | . . . . . . . . . . . . . . . . . . . . . . . . . . . 1 . . Average Slot Usage (%) 88 | . 96 98 98 99 96 94 91 95 97 100 100 94 95 91 92 95 95 94 94 92 87 77 50 70 87 84 78 81 76 Engine 3 | . 12 12 10 11 9 7 . . . . . . . . . . . . . . . . . 1 4 . . . . Core 2 | . . . . . . 1 6 7 7 7 7 7 7 6 6 6 5 5 5 5 4 2 3 3 . 5 4 1 . Treads 14 | . 27 12 19 22 33 28 . . . . . . . . . . . . . . . . . 7 16 20 13 13 11 Wheel 1 | . . 15 2 . . . . . . . . . . . . . . . . . . . . 2 6 . 4 . . Flight 9 | . . . . . . 6 38 38 38 38 38 38 38 33 33 33 35 35 35 34 33 26 11 7 2 . . . . Device 13 | . 12 14 19 19 10 8 6 7 6 7 7 7 8 16 20 20 15 11 11 11 11 14 15 4 4 11 12 20 20 Storage 7 | . 14 14 11 11 9 9 7 7 7 7 7 7 7 6 6 6 5 5 5 5 5 4 . 2 5 5 4 7 7 Processor 7 | . . . . . 4 . 7 7 7 7 7 7 7 6 6 6 5 5 5 5 5 5 5 17 20 17 15 12 12 Hackware 2 | . . . . . . 1 7 7 7 7 7 7 4 7 6 6 10 11 11 11 11 11 10 5 3 . . . 2 Protection 2 | . . . 1 2 2 7 . . . . . . . . . . 1 5 4 5 5 2 . 2 4 5 2 3 3 Energy Gun 7 | . 13 27 18 23 11 7 . . . . . . . . . . . . . . . . . . 4 10 10 2 . Energy Cannon 2 | . 1 . . . . . . . . . . . . . . . . . . . . . . . . . . 12 11 Ballistic Gun 5 | . 11 . 14 . 14 14 7 7 7 7 7 2 7 6 6 6 3 . . . . 1 . . . 5 1 . . Impact Weapon 1 | . . . . . . 2 7 7 4 7 7 7 5 5 5 6 5 5 5 5 5 3 . . . . . . . Special Melee Weapon 1 | . . . . . . . . . 5 7 7 7 4 . . 1 1 . . . . . . 7 8 . . . . Naked Turns . | . . . . . . . . . . . . . . . . . . . . . . . . . . . . . . Heaviest Build 196 | 13 31 34 42 47 50 48 25 23 28 24 24 24 24 27 26 27 27 27 29 29 27 37 15 78 126 127 157 168 196 Greatest Support 235 | 40 40 40 46 46 87 87 25 25 25 25 25 25 25 27 27 27 32 32 32 32 30 37 16 121 184 184 194 235 235 Greatest Overweight (x) 4 | . . 1 1 1 . 1 . . 1 . . . . . . . . . . . . . . . 4 . 3 4 . Average Overweight (x) . | . . . . . . . . . . . . . . . . . . . . . . . . . 1 . 1 . . Largest Inventory Capacity 25 | 8 15 15 15 15 15 15 10 10 10 10 10 10 10 10 10 10 10 10 10 10 10 10 5 20 20 20 20 20 25 Average Capacity 15 | 6 14 15 15 15 15 14 10 10 10 10 10 10 10 10 10 10 10 10 10 10 10 9 5 11 20 20 20 20 21 Most Carried 20 | 4 15 15 15 15 15 15 10 10 10 10 10 10 10 10 10 10 10 10 10 10 10 10 5 19 20 20 20 20 20 Average Carried 14 | 2 9 13 14 11 14 13 9 9 9 10 10 10 9 9 9 10 9 10 9 9 9 9 4 10 19 19 19 19 19 Final Capacity 25 | 8 15 15 15 15 15 10 10 10 10 10 10 10 10 10 10 10 10 10 10 10 10 5 5 20 20 20 20 20 25 Final Carried 20 | 4 14 15 15 10 15 10 9 10 10 10 10 10 10 9 10 10 10 10 10 10 9 5 5 19 20 20 20 20 20 Class Distribution -------------------- 16% | Scavenger-Mutant 16% | Mutant 11% | Sprinter 11% | Skirmisher 8% | Tank 7% | Hacker-Scout 5% | Trapper-Mutant 4% | Scout 3% | Trapper-Gunner 3% | Trapper-Tank 3% | Trapper-Skirmisher 3% | Hacker-Sprinter Dominant Class ---------------- Mutant | -10/Materials Mutant | -10/Mines Skirmisher | -9/Materials Mutant | -9/Mines Skirmisher | -8/Materials Tank | -8/Storage Sprinter | -7/Factory Mutant | -7/Waste Sprinter | -7/Factory Sprinter | -7/Lower Caves Sprinter | -7/Lower Caves Sprinter | -7/Data Miner Sprinter | -6/Proximity Caves Scout | -6/Factory Scout | -6/Lower Caves Scout | -6/Lower Caves Hacker-Scout | -5/Factory Hacker-Scout | -5/Upper Caves Hacker-Scout | -5/Upper Caves Hacker-Scout | -5/Zhirov Hacker-Scout | -4/Proximity Caves Hacker-Sprinter | -4/Factory Hacker-Sprinter | -4/Upper Caves Scavenger-Mutant | -4/Upper Caves Scavenger-Mutant | -4/Warlord Scavenger-Mutant | -3/Proximity Caves Scavenger-Mutant | -3/Research Trapper-Tank | -2/Research Trapper-Gunner | -1/Access Resources | -11 -10 -10 -9 -9 -8 -8 -7 -7 -7 -7 -7 -7 -6 -6 -6 -6 -5 -5 -5 -5 -4 -4 -4 -4 -4 -3 -3 -2 -1 ----------- Run | Jun Mat Min Mat Min Mat Sto Fac Was Fac Low Low Dat Pro Fac Low Low Fac Upp Upp Zhi Pro Fac Upp Upp War Pro Res Res Acc Matter Collected 9826 | 209 411 76 1004 256 859 898 100 512 150 75 . . 363 270 135 10 134 50 65 . 146 744 224 363 305 277 809 645 736 Remotely . | . . . . . . . . . . . . . . . . . . . . . . . . . . . . . . Salvage Created 17003 | . 538 37 1793 754 1499 1585 140 1149 282 32 124 . 225 775 44 . 160 17 57 . 45 444 135 364 185 171 1739 1828 2881 Parts 674 | . 33 7 110 34 90 66 . 7 7 . . . 11 12 . . 1 . 2 . 1 20 9 14 . 7 61 75 107 Haulers Intercepted 39 | . 2 . 6 . 5 6 3 . 3 . . . . 4 . . 2 . . . . 3 . . . . 1 . 4 Recyclers Shooed 22 | . 3 . 4 . 2 . . . . . . . . . . . . . . . . . . . . . 11 . 2 Parts Field Recycled 29 | . . . . . . . . . . . . . . . . . . . . . . . . . . . 14 15 . Retrieved Matter 301 | . . . . . . . . . . . . . . . . . . . . . . . . . . . 147 154 . Parts Self-Destructed 47 | . . . . . . . . . . . . . 23 . 1 . . . 2 . . . 7 7 . 7 . . . Prevented 6 | . . . . . . . . . . . . . 1 . 3 . . . . . 1 . . 1 . . . . . Kills | -11 -10 -10 -9 -9 -8 -8 -7 -7 -7 -7 -7 -7 -6 -6 -6 -6 -5 -5 -5 -5 -4 -4 -4 -4 -4 -3 -3 -2 -1 ------- Run | Jun Mat Min Mat Min Mat Sto Fac Was Fac Low Low Dat Pro Fac Low Low Fac Upp Upp Zhi Pro Fac Upp Upp War Pro Res Res Acc Combat Hostiles Destroyed 258 | . 13 6 34 33 31 27 . 6 1 . . . 7 5 . . . . . . 2 2 6 4 4 4 24 19 30 Melee 6 | . . . . . . . . . 1 . . . . 1 . . . . . . 1 1 . 2 . . . . . Guns 121 | . 8 2 32 11 25 23 . . . . . . 1 . . . . . . . . . . . 1 3 15 . . Cannons 32 | . . . . . . . . . . . . . . . . . . . . . . . . 1 3 1 2 5 20 AOE 74 | . 5 4 1 22 6 3 . 6 . . . . 5 3 . . . . . . . 1 6 1 . . 7 3 1 Classes Destroyed 28 | . 4 . 5 4 1 2 . 1 . 1 . . 2 . . . . . . . 1 1 1 2 1 . 1 1 . Worker 9 | . . . 3 . 3 2 . . . . . . . . . . . . . . . 1 . . . . . . . Builder 9 | . . . . 2 . . . . . . . . . . . . . . . . . . . . . . 5 . 2 Tunneler 2 | . . . . . 1 . . . . . . . . . . . . . . . . 1 . . . . . . . Hauler 39 | . 2 . 6 . 5 6 3 . 3 . . . . 4 . . 2 . . . . 3 . . . . 1 . 4 Recycler 15 | . 1 . 1 . 2 3 . . . . . . . . . . . . . . . . . . . . 7 . 1 Minesweeper 5 | . . . . . . . . . . 1 . . . . 2 . . . 1 . . . . . . 1 . . . Mechanic 1 | . . . 1 . . . . . . . . . . . . . . . . . . . . . . . . . . Operator 5 | . . . . . . 1 . . . . . . . 1 . . . . . . . 1 . . . . . 1 1 Drone 2 | . . . . . . . . . . . . . . . . . . . . . 2 . . . . . . . . Watcher 26 | . . . 1 . . 2 1 . 3 . . . . 4 . . . . . . . 3 . . . . 5 2 5 Swarmer 47 | . 6 6 7 . 8 6 . . . . . . 1 3 . . . . . . . . 5 . . . . 2 3 Cutter 2 | . . . . . . . . . . . . . . . . . . . . . . 2 . . . . . . . Grunt 95 | . 7 . 18 10 16 12 . . . . . . 2 1 . . . . . . . . 1 1 2 . 12 2 11 Brawler 3 | . . . . 2 . . . . . . . . . . . . . . . . . . . . . . . . 1 Duelist 5 | . . . 1 1 . 1 . . . . . . 1 . . . . . . . . . . . . . . . 1 Protector 1 | . . . . . . 1 . . . . . . . . . . . . . . . . . . . . . . . Sentry 28 | . . . 8 . 7 7 . . 1 . . . . 1 . . . . . . . . . 1 . . 1 2 . Demolisher 1 | . . . . 1 . . . . . . . . . . . . . . . . . . . . . . . . . Specialist 2 | . . . . . . . . . . . . . 1 . . . . . . . . . . . 1 . . . . Hunter 16 | . . . . . . . . . . . . . 2 . . . . . . . . . . 1 . 2 6 5 . Programmer 19 | . . . . . . . . . . . . . . . . . . . . . . . . 1 . 1 4 . 13 Heavy 2 | . . . . . . . . . . . . . . . . . . . . . . . . . . . 1 . 1 Behemoth 4 | . . . . . . . . . . . . . . . . . . . . . . . . 1 . 1 . 2 . Compactor 6 | . . . . . . . . 6 . . . . . . . . . . . . . . . . . . . . . Striker 2 | . . . . . . . . . . . . . . . . . . . . . . . . . 1 . . 1 . Executioner 5 | . . . . . . . . . . . . . . . . . . . . . . . . . . . . 5 . Decomposer 3 | . . . . . . . . . . . . . . . . . . 1 . . 2 . . . . . . . . Samaritan 1 | . . . . . . . . . . . . . . . . . . . . . . . 1 . . . . . . Assembled 19 | . . . . 19 . . . . . . . . . . . . . . . . . . . . . . . . . Best Kill Streak 22 | . 5 3 5 22 8 7 1 6 2 1 . . 4 3 1 . 1 . 1 . 1 2 4 2 2 2 17 4 7 Combat Bots Only 22 | . 5 3 5 22 6 4 . 6 1 . . . 4 3 . . . . . . 1 2 4 2 2 2 9 4 6 Max Kills in Single Turn 5 | . 3 2 2 3 5 3 1 1 1 1 . . 1 2 1 . 1 1 1 . 1 1 5 1 1 1 4 2 2 Gunslinging 1 | . . . 1 1 . . . . . . . . . . . . . . . . . . . . . . . . . Exploded 4 | . 3 2 1 3 4 3 . 1 . . . . 1 2 . . . . . . . 1 4 1 . . 1 2 1 Melee 1 | . . . . . . . . . 1 . . . . 1 . . . . . . 1 1 . 1 . . . . . Uniques/NPCs Destroyed . | . . . . . . . . . . . . . . . . . . . . . . . . . . . . . . Combat | -11 -10 -10 -9 -9 -8 -8 -7 -7 -7 -7 -7 -7 -6 -6 -6 -6 -5 -5 -5 -5 -4 -4 -4 -4 -4 -3 -3 -2 -1 -------- Run | Jun Mat Min Mat Min Mat Sto Fac Was Fac Low Low Dat Pro Fac Low Low Fac Upp Upp Zhi Pro Fac Upp Upp War Pro Res Res Acc Damage Taken 19925 | . 803 203 1038 898 1333 818 13 . 100 11 . . 436 54 37 . 186 157 . . 159 2051 83 769 550 774 4323 2596 2533 Core 2374 | . 129 56 183 133 138 58 . . 28 6 . . 68 34 . . 25 23 . . 39 749 52 214 . 30 108 216 85 Absorbed by Shields 2103 | . . . . . . . . . . . . . . . . . . . . . 10 . . . 10 . 318 61 1704 Reduced by Siege Mode 693 | . . . . . . . . . . . . . . . . . . . . . . . . . . 96 221 187 189 Redirected to Shielding 101 | . . . . . . . . . . . . . . . . . . 19 . . 45 37 . . . . . . . Regen/Repaired (Parts) 518 | . . . 177 . 156 11 . . 13 . . . . 32 . . . . . . . . . . 129 . . . . Core Remaining (%) 68 | 100 . 26 . 21 . 64 . . . . . . 85 . . 96 . . . . 91 . . . . 4 91 85 94 Volleys Fired 690 | . 71 12 96 43 69 64 . 24 . . . . 20 5 . . 1 . . . . 8 4 3 10 16 106 38 100 Largest 4 | . 2 2 3 3 3 3 . 1 . . . . 2 1 . . 1 . . . . 1 1 1 2 4 4 3 4 Hottest 382 | . 76 112 135 135 117 117 . 49 . . . . 53 39 . . 28 . . . . 105 43 65 100 190 283 269 382 Shots Fired 1433 | . 123 21 250 84 185 182 . 24 . . . . 26 5 . . 1 . . . . 8 4 3 20 46 148 103 200 Gun 979 | . 114 18 250 73 181 181 . . . . . . 16 3 . . 1 . . . . 3 . . 10 29 100 . . Cannon 372 | . 5 . . . . . . . . . . . . . . . . . . . . 4 . 3 10 17 30 103 200 Launcher 82 | . 4 3 . 11 4 1 . 24 . . . . 10 2 . . . . . . . 1 4 . . . 18 . . Special . | . . . . . . . . . . . . . . . . . . . . . . . . . . . . . . Kinetic 576 | . 54 . 126 . 113 119 . . . . . . 16 3 . . 1 . . . . 3 . 3 20 33 52 . 33 Thermal 313 | . 65 18 66 . 13 62 . . . . . . . . . . . . . . . 4 . . . . 21 . 64 Explosive 82 | . 4 3 . 11 4 1 . 24 . . . . 10 2 . . . . . . . 1 4 . . . 18 . . Electromagnetic 392 | . . . 58 73 55 . . . . . . . . . . . . . . . . . . . . . . 103 103 Entropic 70 | . . . . . . . . . . . . . . . . . . . . . . . . . . 13 57 . . Robot Hit Streak 29 | . 10 12 15 16 21 17 . 6 . . . . 10 3 . . 2 . . . . 6 2 3 5 17 23 23 29 Robot Miss Streak 14 | . 2 2 3 2 14 8 . 2 . . . . 4 1 . . . . . . . 1 1 . 2 1 2 2 2 Penetration Max 1 | . . . . . . . . . . . . . . . . . . . . . . . . . 1 . 1 . . Secondary Targets 10 | . . . 3 3 3 1 . . . . . . . . . . . . . . . . . . . . . . . Max Gunslinging Chain 2 | . . . 1 2 1 1 . . . . . . . . . . . . . . . . . . . . . . . Capacitor 25 | . . . . . . . . . . . . . . . . . . . . . . . . . . . . . 25 Shots Hit Robots 1203 | . 85 14 172 68 132 147 6 14 14 1 2 . 15 25 2 . 12 2 2 . 5 21 2 44 13 38 119 88 160 Core Hits 693 | . 33 8 68 64 121 117 1 10 3 . 1 . 16 7 . . . . . . . 8 22 13 9 13 90 26 63 Critical Kills 4 | . . . . . . . . . . . . . . 1 . . . . . . . 2 . . . . . . 1 Critical Parts Destroyed 27 | . . . . . 1 3 1 . 3 . 1 . 1 6 . . . . 1 . 2 3 . . . 2 3 . . Critical Strikes 63 | . 3 . 2 . 2 8 1 . 4 . 1 . 1 8 . . . . 1 . 2 5 . 1 1 3 10 2 8 Burn 12 | . 3 . 2 . 1 5 . . . . . . . . . . . . . . . . . . . . 1 . . Meltdown 1 | . . . . . . . . . . . . . . . . . . . . . . . . . . . . . 1 Destroy 1 | . . . . . 1 . . . . . . . . . . . . . . . . . . . . . . . . Blast 13 | . . . . . . . . . . . . . . . . . . . . . . . . . 1 1 6 . 5 Corrupt 4 | . . . . . . . . . . . . . . . . . . . . . . . . . . . . 2 2 Smash 24 | . . . . . . 3 1 . 3 . 1 . 1 7 . . . . 1 . 2 5 . . . . . . . Sever 3 | . . . . . . . . . 1 . . . . 1 . . . . . . . . . 1 . . . . . Detonate 5 | . . . . . . . . . . . . . . . . . . . . . . . . . . 2 3 . . Melee Attacks 257 | . . . . . . 16 30 . 28 4 2 . 8 33 5 . 27 7 4 . 15 31 . 45 1 . . . 1 Impact 179 | . . . . . . 16 30 . 16 4 2 . 6 31 5 . 25 6 4 . 12 22 . . . . . . . Slashing 45 | . . . . . . . . . 6 . . . . 2 . . 2 1 . . 3 9 . 22 . . . . . Piercing 25 | . . . . . . . . . . . . . . . . . . . . . . . . 23 1 . . . 1 Sneak Attacks 50 | . . . . . . 4 3 . 5 1 . . 1 4 2 . 2 1 1 . 2 5 . 17 1 . . . 1 Combat Hostiles 15 | . . . . . . . . . . . . . . . . . . . . . . . . 14 . . . . 1 Follow-up Attacks 4 | . . . . . . . . . . . . . . . . . . 1 . . 2 1 . . . . . . . Damage Inflicted 46720 | . 1184 484 2872 2637 2922 3299 607 4264 772 111 202 . 1140 1608 245 . 686 111 225 . 412 1292 1067 1374 511 1144 7556 3339 6656 Guns 13823 | . 801 162 2682 1041 2141 2531 . . . . . . 160 34 . . 22 . . . . 66 . . 239 731 3213 . . Cannons 10549 | . 69 . . . . . . . . . . . . . . . . . . . . . . 115 266 285 644 2669 6501 Explosions 14486 | . 287 322 184 1596 781 133 . 4264 . . . . 912 269 . . . . . . . 45 1067 . . 128 3694 670 134 Melee 7806 | . . . . . . 635 607 . 772 111 202 . 68 1305 245 . 664 111 225 . 412 1181 . 1259 6 . . . 3 Ramming 56 | . 27 . 6 . . . . . . . . . . . . . . . . . . . . . . . 5 . 18 Kinetic 8321 | . 328 . 1279 . 1246 1564 . . . . . . 160 34 . . 22 . . . . 66 . 115 505 532 1047 . 1423 Thermal 7035 | . 542 162 860 274 327 967 . . . . . . . . . . . . . . . . . . . 128 1057 670 2048 Explosive 12398 | . 287 322 . 1322 640 133 . 4264 . . . . 912 269 . . . . . . . 45 1067 . . . 3137 . . Electromagnetic 8310 | . . . 727 1041 709 . . . . . . . . . . . . . . . . . . . . . . 2669 3164 Impact 6034 | . . . . . . 635 607 . 667 111 202 . 68 1237 245 . 664 111 225 . 379 883 . . . . . . . Slashing 1675 | . . . . . . . . . 105 . . . . 68 . . . . . . 33 298 . 1171 . . . . . Piercing 97 | . . . . . . . . . . . . . . . . . . . . . . . . 88 6 . . . 3 Entropic 2794 | . . . . . . . . . . . . . . . . . . . . . . . . . . 484 2310 . . Highest Corruption 14 | . 1 1 . . . . 1 1 1 1 1 1 1 1 1 1 . . . . . 5 5 4 4 1 6 14 8 Average Corruption 2 | . 1 1 . . . . 1 1 1 1 1 1 1 1 1 1 . . . . . 1 3 3 4 1 4 11 5 Corruption Purged 13 | . . . . . . . . . . . . . . . . . . . . . . 2 3 . . 1 . . 7 Corruption Blocked 8 | . . . . . . . . . . . . . . . . . . . . . . . . . . . . 5 3 Effects 111 | . 8 2 . . . . 2 1 3 1 3 . 1 1 2 1 . . . . . 4 5 16 1 5 21 7 27 Message Errors 30 | . 3 1 . . . . 1 . 1 . 2 . 1 . . . . . . . . 1 2 9 . 1 3 2 3 Matter Fused 24 | . 2 . . . . . . 1 . . . . . . 1 . . . . . . . 1 2 . 1 4 4 8 Heat Flow Errors 11 | . . . . . . . . . . . . . . . . . . . . . . 1 1 2 . . 5 . 2 Energy Discharges 11 | . . . . . . . . . . 1 . . . . . 1 . . . . . 1 1 1 1 . 1 . 4 Parts Fused 2 | . . . . . . . . . 1 . . . . . . . . . . . . . . . . . . . 1 Data Loss (minor) 21 | . 2 . . . . . 1 . 1 . 1 . . 1 1 . . . . . . 1 . 1 . 2 5 1 4 Data Loss (major) 5 | . 1 1 . . . . . . . . . . . . . . . . . . . . . 1 . . 1 . 1 Misfires 2 | . . . . . . . . . . . . . . . . . . . . . . . . . . 1 . . 1 Alerts 1 | . . . . . . . . . . . . . . . . . . . . . . . . . . . 1 . . Weapon Failures 4 | . . . . . . . . . . . . . . . . . . . . . . . . . . . 1 . 3 Overload Shots . | . . . . . . . . . . . . . . . . . . . . . . . . . . . . . . Overflow Damage 4418 | . 5 6 . 37 8 543 44 . 251 101 140 . 130 829 183 . 95 72 221 . 330 505 58 72 . . 289 73 426 Projectiles 489 | . . . . . . . . . . . . . . . . . . . . . . . . . . . 31 66 392 Explosions 543 | . 5 6 . 37 8 . . . . . . . 62 64 . . . . . . . 4 58 . . . 258 7 34 Melee 3386 | . . . . . . 543 44 . 251 101 140 . 68 765 183 . 95 72 221 . 330 501 . 72 . . . . . Knockbacks 37 | . . . 1 . . 4 1 . . 1 . . 1 3 1 . . . . . 1 3 . . 1 1 4 . 15 Impact 16 | . . . 1 . . 4 1 . . 1 . . 1 3 1 . . . . . 1 3 . . . . . . . Kinetic 20 | . . . . . . . . . . . . . . . . . . . . . . . . . 1 1 4 . 14 Secondary 1 | . . . . . . . . . . . . . . . . . . . . . . . . . . . . . 1 Self-Inflicted Damage 934 | . 106 37 107 40 281 . . . . . . . 56 . . . . . . . . 37 31 . . . 239 . . Shots 30 | . 3 1 3 3 9 . . . . . . . 2 . . . . . . . . 1 1 . . . 7 . . Rammed 14 | . 12 . . . . . . . . . . . . . . . . . . . . . . . . . 1 . 1 Targets Rammed 15 | . 12 . 1 . . . . . . . . . . . . . . . . . . . . . . . 1 . 1 Kicked . | . . . . . . . . . . . . . . . . . . . . . . . . . . . . . . Crushed 1 | . . . 1 . . . . . . . . . . . . . . . . . . . . . . . . . . Highest Temperature 366 | . 366 105 264 39 40 75 7 40 3 3 3 . 21 18 7 . 24 29 18 30 . 286 194 229 3 166 187 222 201 Average Temperature 52 | . 84 42 58 12 13 22 3 15 3 2 2 . 8 7 7 . 10 12 10 16 . 105 109 113 3 101 50 40 66 Received Heat Transfer 2861 | . 333 . 318 231 477 315 9 . 24 . . . 36 27 18 . 36 12 . . . 60 9 36 74 18 321 372 135 Effects 6 | . 3 . 2 . . . . . . . . . . . . . . . . . . 1 . . . . . . . Shutdowns 1 | . 1 . . . . . . . . . . . . . . . . . . . . . . . . . . . . Energy Bleed 1 | . 1 . . . . . . . . . . . . . . . . . . . . . . . . . . . . Interference 3 | . . . 2 . . . . . . . . . . . . . . . . . . 1 . . . . . . . Matter Decay 1 | . 1 . . . . . . . . . . . . . . . . . . . . . . . . . . . . Siege Activations 21 | . . . . . . . . . . . . . . . . . . . . . . . . . . 4 2 5 10 Total Turns 437 | . . . . . . . . . . . . . . . . . . . . . . . . . . 88 66 118 165 Longest Duration 45 | . . . . . . . . . . . . . . . . . . . . . . . . . . 41 42 45 36 Robots Corrupted 22 | . . . 1 . . . . . . . . . . . . . . . . . . . . . . . . 11 10 Combat Hostiles 21 | . . . 1 . . . . . . . . . . . . . . . . . . . . . . . . 11 9 Parts Fried 114 | . . . 4 1 3 8 6 . 5 . 1 . 1 11 4 . 1 . 1 . 1 5 . . . . . 24 38 Impact Corruptions 87 | . . . . . . 12 5 . 11 3 1 . 2 18 6 . 3 2 4 . 9 10 . . . . . . 1 Robots Melted 1 | . . . . . . . . . . . . . . . . . . . . . . . . . . . . . 1 Combat Hostiles . | . . . . . . . . . . . . . . . . . . . . . . . . . . . . . . Parts Melted 15 | . 4 1 1 . 1 3 . . . . . . . . . . . . . . . . . . . . 2 2 1 Heat Transferred 10401 | . 1739 407 1852 300 681 2385 . . . . . . . . . . . . . . . . . . . 100 1140 350 1447 Parts Sabotaged . | . . . . . . . . . . . . . . . . . . . . . . . . . . . . . . Parts Stolen . | . . . . . . . . . . . . . . . . . . . . . . . . . . . . . . Parts Stripped . | . . . . . . . . . . . . . . . . . . . . . . . . . . . . . . Power Chain Reactions 19 | . . . 4 6 4 . . . . . . . . . . . . . . . . 1 . . . . . 3 1 Missiles Intercepted . | . . . . . . . . . . . . . . . . . . . . . . . . . . . . . . Alert | -11 -10 -10 -9 -9 -8 -8 -7 -7 -7 -7 -7 -7 -6 -6 -6 -6 -5 -5 -5 -5 -4 -4 -4 -4 -4 -3 -3 -2 -1 ------- Run | Jun Mat Min Mat Min Mat Sto Fac Was Fac Low Low Dat Pro Fac Low Low Fac Upp Upp Zhi Pro Fac Upp Upp War Pro Res Res Acc Peak Influence 919 | . 213 170 722 465 742 853 405 213 368 . . . . 398 . . 294 . . . . 515 . . . . 919 517 753 Initial 450 | . . 19 . 281 70 313 359 128 149 . . . . 96 . . 70 . . . . 450 . . . . 33 415 272 Average 336 | . 65 67 288 312 305 596 345 186 236 . . . . 279 . . 166 . . . . 340 . . . . 467 352 495 Maximum Alert Level 3 | . 1 . 3 2 3 3 2 1 1 . . . . 1 . . 1 . . . . 2 . . . . 3 2 3 Low Security (%) 30 | 100 94 100 49 16 48 . . 41 29 . . . . 11 . . 74 . . . . 20 . . . . 35 . . Level 1 32 | . 5 . 14 63 15 13 86 58 70 . . . . 88 . . 25 . . . . 42 . . . . 5 61 15 Level 2 28 | . . . 30 19 33 46 13 . . . . . . . . . . . . . . 37 . . . . 14 38 81 Level 3 8 | . . . 5 . 2 39 . . . . . . . . . . . . . . . . . . . . 44 . 2 Level 4 . | . . . . . . . . . . . . . . . . . . . . . . . . . . . . . . Level 5 . | . . . . . . . . . . . . . . . . . . . . . . . . . . . . . . High Security . | . . . . . . . . . . . . . . . . . . . . . . . . . . . . . . Max Security . | . . . . . . . . . . . . . . . . . . . . . . . . . . . . . . Squads Dispatched 50 | . 4 . 5 . 4 3 2 . 2 . . . . 4 . . 2 . . . . 9 . . . . 9 . 6 Investigation 19 | . 2 . 2 . 4 . 2 . . . . . . 2 . . 2 . . . . 4 . . . . . . 1 Extermination 8 | . . . . . . . . . 1 . . . . . . . . . . . . 1 . . . . 2 . 4 Reinforcement 19 | . 2 . 3 . . 2 . . 1 . . . . 2 . . . . . . . 4 . . . . 4 . 1 Assault 3 | . . . . . . 1 . . . . . . . . . . . . . . . . . . . . 2 . . Garrison 1 | . . . . . . . . . . . . . . . . . . . . . . . . . . . 1 . . Intercept . | . . . . . . . . . . . . . . . . . . . . . . . . . . . . . . Searches Triggered 2 | . . . . . . . . . . . . . . . . . . . . . . 2 . . . . . . . Data Miner Redirects 5 | . . . . . . . . . . . . . . . . . 1 . . . . 2 . . . . 2 . . Construction Impeded 3 | . . . . . . 1 . . . . . . . . . . . . . . . . . . . . 2 . . Haulers Reinforced 3 | . . . . . . . . . 1 . . . . 1 . . . . . . . . . . . . 1 . . Active Scanning Responses . | . . . . . . . . . . . . . . . . . . . . . . . . . . . . . . Cargo Convoy Interrupts . | . . . . . . . . . . . . . . . . . . . . . . . . . . . . . . Stealth | -11 -10 -10 -9 -9 -8 -8 -7 -7 -7 -7 -7 -7 -6 -6 -6 -6 -5 -5 -5 -5 -4 -4 -4 -4 -4 -3 -3 -2 -1 --------- Run | Jun Mat Min Mat Min Mat Sto Fac Was Fac Low Low Dat Pro Fac Low Low Fac Upp Upp Zhi Pro Fac Upp Upp War Pro Res Res Acc Distress Signals 36 | . 1 . 1 . 4 1 . . 1 . . . . 1 . . 1 . . . 5 1 . . 3 . 1 16 . Communications Jammed 5 | . . . . . . . . . . . . . . . . . . . . . 2 3 . . . . . . . Distress Signals 3 | . . . . . . . . . . . . . . . . . . . . . . 3 . . . . . . . Times Spotted 512 | . 27 6 60 35 44 41 5 6 6 1 . . 14 17 1 . 7 4 . . 14 60 14 11 22 4 35 32 46 Peak Tracking Total 15 | . 4 3 5 12 7 6 5 3 3 1 . . 7 5 1 . 3 3 . . 8 15 11 2 10 2 8 6 7 Tactical Retreats 37 | . 1 . 4 . 2 . 2 . 1 . . . . 1 . . 1 2 . . 2 11 . 1 . . 3 2 4 Traps | -11 -10 -10 -9 -9 -8 -8 -7 -7 -7 -7 -7 -7 -6 -6 -6 -6 -5 -5 -5 -5 -4 -4 -4 -4 -4 -3 -3 -2 -1 ------- Run | Jun Mat Min Mat Min Mat Sto Fac Was Fac Low Low Dat Pro Fac Low Low Fac Upp Upp Zhi Pro Fac Upp Upp War Pro Res Res Acc Traps Triggered 19 | . 3 . 1 . 2 4 3 . . . . . . 1 . . . . . . 2 1 . . . . . . 2 Indirectly . | . . . . . . . . . . . . . . . . . . . . . . . . . . . . . . Trap Hack Attempts 20 | . . . . . . . . . 20 . . . . . . . . . . . . . . . . . . . . Triggered . | . . . . . . . . . . . . . . . . . . . . . . . . . . . . . . Disarmed . | . . . . . . . . . . . . . . . . . . . . . . . . . . . . . . Reprogrammed 2 | . . . . . . . . . 2 . . . . . . . . . . . . . . . . . . . . Reused 3 | . . . . . . . . . . 1 . . . . 1 . . . . . . . . . . . . . 1 Traps Extracted 15 | . . . . . . . . . 2 . . . . . 5 . . . 3 . . . . . . 5 . . . Installed 36 | . . . . . . . . . . 10 . . . . 6 . 1 . 7 . . 2 . . . 9 . . 1 Triggered 22 | . . . . . . . . . . 1 . . . . 2 . . . . . . . . . 17 . . . 2 Most Traps Carried 8 | . . . . . . . . . 2 2 2 2 2 2 2 2 2 . 6 6 6 6 4 4 4 8 8 8 8 Machines | -11 -10 -10 -9 -9 -8 -8 -7 -7 -7 -7 -7 -7 -6 -6 -6 -6 -5 -5 -5 -5 -4 -4 -4 -4 -4 -3 -3 -2 -1 ---------- Run | Jun Mat Min Mat Min Mat Sto Fac Was Fac Low Low Dat Pro Fac Low Low Fac Upp Upp Zhi Pro Fac Upp Upp War Pro Res Res Acc Machines Disabled 26 | . . 1 1 . 7 5 . . . . . . 1 4 . . . . . . . 1 . . . . 3 1 2 Max in Single Turn 3 | . . 1 1 . 3 1 . . . . . . 1 2 . . . . . . . 1 . . . . 1 1 1 Garrison Access 8 | . . . . . . . 1 . . . . . . 2 . . 1 . . . . 1 . . . . 1 2 . Energy Cycler 1 | . . . . . . . . . . . . . . . . . . . . . . . . . . . . . 1 Machines Repaired . | . . . . . . . . . . . . . . . . . . . . . . . . . . . . . . Machines Sabotaged . | . . . . . . . . . . . . . . . . . . . . . . . . . . . . . . Overloaded Fab Kills 1 | . . . . . . . . . . . . . . . . . . . . . . 1 . . . . . . . Hacking | -11 -10 -10 -9 -9 -8 -8 -7 -7 -7 -7 -7 -7 -6 -6 -6 -6 -5 -5 -5 -5 -4 -4 -4 -4 -4 -3 -3 -2 -1 --------- Run | Jun Mat Min Mat Min Mat Sto Fac Was Fac Low Low Dat Pro Fac Low Low Fac Upp Upp Zhi Pro Fac Upp Upp War Pro Res Res Acc Machines Accessed 133 | . 4 1 11 . 11 10 11 . 18 1 . 4 . 20 . . 14 . . 9 . 10 1 1 2 . 4 . 1 Terminals 72 | . 4 . 9 . 8 8 4 . 10 1 . . . 12 . . 9 . . . . 5 . . . . 1 . 1 Fabricators 8 | . . . . . . . . . 2 . . . . 1 . . 1 . . . . 3 . . . . 1 . . Repair Stations 10 | . . . 1 . 1 1 2 . 2 . . . . 2 . . . . . . . . . . . . 1 . . Recycling Units 3 | . . . . . . 1 2 . . . . . . . . . . . . . . . . . . . . . . Scanalyzers 12 | . . . 1 . 2 . 1 . 3 . . . . 2 . . 2 . . . . . . . . . 1 . . Garrison Access 10 | . . . . . . . 2 . 1 . . . . 3 . . 2 . . . . 2 . . . . . . . Total Hacks 424 | . 12 1 35 . 43 28 28 . 43 1 . 29 . 47 . . 64 . . 48 . 32 1 1 3 . 6 . 2 Successful 251 | . 5 1 20 . 17 17 17 . 18 1 . 29 . 19 . . 33 . . 48 . 18 1 1 3 . 2 . 1 Failed 173 | . 7 . 15 . 26 11 11 . 25 . . . . 28 . . 31 . . . . 14 . . . . 4 . 1 Catastrophic 23 | . 2 . . . . . 3 . 6 . . . . 2 . . 3 . . . . 6 . . . . 1 . . Database Lockouts . | . . . . . . . . . . . . . . . . . . . . . . . . . . . . . . Manual 119 | . 6 . 14 . 10 11 6 . 10 . . . 1 15 . . 31 . . . . 13 . . 1 . 1 . . Terminals 225 | . 12 . 27 . 23 24 9 . 23 1 . . . 31 . . 50 . . . . 21 . . . . 2 . 2 Fabricators 16 | . . . . . . . . . 5 . . . . 2 . . 2 . . . . 6 . . . . 1 . . Repair Stations 35 | . . . 4 . 11 3 4 . 7 . . . . 5 . . . . . . . . . . . . 1 . . Recycling Units 6 | . . . . . . 1 5 . . . . . . . . . . . . . . . . . . . . . . Scanalyzers 39 | . . . 4 . 9 . 8 . 6 . . . . 3 . . 7 . . . . . . . . . 2 . . Garrison Access 20 | . . . . . . . 2 . 2 . . . . 6 . . 5 . . . . 5 . . . . . . . Terminal Hacks 144 | . 2 1 6 . 3 10 1 . 4 1 . 29 . 8 . . 17 . . 48 . 8 1 1 3 . . . 1 Record 51 | . . . . . . . . . . 1 . 11 . . . . 1 . . 36 . . . . 2 . . . . Part Schematic 18 | . . . . . . 1 . . . . . 11 . . . . 2 . . 4 . . . . . . . . . Robot Schematic 4 | . . . . . . . . . . . . 4 . . . . . . . . . . . . . . . . . Robot Analysis 8 | . . . 2 . . 1 . . . . . . . . . . . . . 4 . 1 . . . . . . . Prototype ID Bank 9 | . . . . . . 1 . . . . . 3 . . . . 1 . . 4 . . . . . . . . . Open Door 6 | . . 1 . . . 1 . . . . . . . . . . . . . . . . 1 1 1 . . . 1 Branch Access Points 3 | . . . . . . . . . . . . . . . . . 1 . . . . 2 . . . . . . . Machine Index 1 | . . . . . . . . . . . . . . 1 . . . . . . . . . . . . . . . Terminal Index 5 | . . . . . 1 1 . . 1 . . . . 1 . . 1 . . . . . . . . . . . . Fabricator Index 1 | . . . . . . . . . . . . . . . . . 1 . . . . . . . . . . . . Repair Station Index 1 | . . . . . . . . . . . . . . . . . 1 . . . . . . . . . . . . Recycling Unit Index 1 | . . . . . . . . . 1 . . . . . . . . . . . . . . . . . . . . Scanalyzer Index 1 | . . . . . . . . . 1 . . . . . . . . . . . . . . . . . . . . Alert Level 9 | . . . 2 . 1 2 . . . . . . . 2 . . 2 . . . . . . . . . . . . Unreport Threat 2 | . . . . . . . . . . . . . . . . . . . . . . 2 . . . . . . . Locate Traps 1 | . . . 1 . . . . . . . . . . . . . . . . . . . . . . . . . . Surveillance Status 1 | . . . . . . . . . . . . . . . . . . . . . . 1 . . . . . . . Recall Investigation 1 | . . . . . . . . . . . . . . . . . 1 . . . . . . . . . . . . Hauler Manifests 7 | . 1 . . . 1 1 . . 1 . . . . 1 . . 2 . . . . . . . . . . . . Registered Components 5 | . 1 . . . . . 1 . . . . . . 1 . . 1 . . . . 1 . . . . . . . Registered Prototypes 5 | . . . 1 . . 1 . . . . . . . 1 . . 1 . . . . 1 . . . . . . . Zone Layout 4 | . . . . . . 1 . . . . . . . 1 . . 2 . . . . . . . . . . . . Fabricator Hacks 9 | . . . . . . . . . 2 . . . . 1 . . 2 . . . . 3 . . . . 1 . . Load Schematic 4 | . . . . . . . . . . . . . . . . . 1 . . . . 2 . . . . 1 . . Build 5 | . . . . . . . . . 2 . . . . 1 . . 1 . . . . 1 . . . . . . . Repair Station Hacks 23 | . . . 4 . 7 2 3 . 5 . . . . 2 . . . . . . . . . . . . . . . Scan Component 13 | . . . 2 . 4 1 2 . 3 . . . . 1 . . . . . . . . . . . . . . . Repair 10 | . . . 2 . 3 1 1 . 2 . . . . 1 . . . . . . . . . . . . . . . Recycling Unit Hacks 4 | . . . . . . 1 3 . . . . . . . . . . . . . . . . . . . . . . Report Inventory 2 | . . . . . . . 2 . . . . . . . . . . . . . . . . . . . . . . Retrieve Components 2 | . . . . . . 1 1 . . . . . . . . . . . . . . . . . . . . . . Scanalyzer 23 | . . . 4 . 4 . 8 . 3 . . . . . . . 4 . . . . . . . . . . . . Insert Component 13 | . . . 2 . 3 . 4 . 2 . . . . . . . 2 . . . . . . . . . . . . Analyze 10 | . . . 2 . 1 . 4 . 1 . . . . . . . 2 . . . . . . . . . . . . Garrison Access Hacks 5 | . . . . . . . 1 . . . . . . 2 . . 1 . . . . 1 . . . . . . . Seal Access 5 | . . . . . . . 1 . . . . . . 2 . . 1 . . . . 1 . . . . . . . Unauthorized Hacks 43 | . 3 . 6 . 3 4 1 . 4 . . . . 6 . . 9 . . . . 6 . . . . 1 . . Terminals 42 | . 3 . 6 . 3 4 1 . 4 . . . . 6 . . 9 . . . . 5 . . . . 1 . . Assimilate 7 | . . . . . . . . . . . . . . 3 . . 3 . . . . 1 . . . . . . . Botnet 34 | . 3 . 6 . 3 4 1 . 4 . . . . 3 . . 6 . . . . 3 . . . . 1 . . Operators 1 | . . . . . . . . . . . . . . . . . . . . . . 1 . . . . . . . Fabricators 1 | . . . . . . . . . . . . . . . . . . . . . . 1 . . . . . . . Overload 1 | . . . . . . . . . . . . . . . . . . . . . . 1 . . . . . . . Repair Stations . | . . . . . . . . . . . . . . . . . . . . . . . . . . . . . . Recycling Units . | . . . . . . . . . . . . . . . . . . . . . . . . . . . . . . Scanalyzers . | . . . . . . . . . . . . . . . . . . . . . . . . . . . . . . Garrison Access . | . . . . . . . . . . . . . . . . . . . . . . . . . . . . . . Data Cores Recovered 1 | . . . . . . . . . . . . . . 1 . . . . . . . . . . . . . . . Used . | . . . . . . . . . . . . . . . . . . . . . . . . . . . . . . Hacking Detections 102 | . 4 . 10 . 10 6 10 . 18 . . . . 16 . . 14 . . . . 9 . . . . 4 . 1 Full Trace Events 15 | . 1 . 2 . 2 1 2 . . . . . . 2 . . 2 . . . . 3 . . . . . . . Feedback Events 3 | . . . . . . . . . . . . . . 3 . . . . . . . . . . . . . . . Corruption 1 | . . . . . . . . . . . . . . 1 . . . . . . . . . . . . . . . Hackware Fried 2 | . . . . . . . . . . . . . . 2 . . . . . . . . . . . . . . . Feedback Blocked . | . . . . . . . . . . . . . . . . . . . . . . . . . . . . . . Robot Schematics Acquired 4 | . . . . . . . . . . . . 4 . . . . . . . . . . . . . . . . . Robots Built . | . . . . . . . . . . . . . . . . . . . . . . . . . . . . . . Authchips . | . . . . . . . . . . . . . . . . . . . . . . . . . . . . . . Time . | . . . . . . . . . . . . . . . . . . . . . . . . . . . . . . Total Robot Build Rating . | . . . . . . . . . . . . . . . . . . . . . . . . . . . . . . Part Schematics Acquired 26 | . . . 2 . . 1 4 . . . . 11 . . . . 4 . . 4 . . . . . . . . . Parts Built 8 | . . . . . . . . . 4 . . . . 2 . . 1 . . . . 1 . . . . . . . Authchips . | . . . . . . . . . . . . . . . . . . . . . . . . . . . . . . Time 394 | . . . . . . . . . 97 . . . . 58 . . 35 . . . . 204 . . . . . . . Total Part Build Rating 56 | . . . . . . . . . 28 . . . . 14 . . 6 . . . . 8 . . . . . . . Parts Repaired 9 | . . . 2 . 3 1 . . 2 . . . . 1 . . . . . . . . . . . . . . . Time 582 | . . . 77 . 127 136 70 . 112 . . . . 60 . . . . . . . . . . . . . . . Parts Recycled . | . . . . . . . . . . . . . . . . . . . . . . . . . . . . . . Recycled Matter . | . . . . . . . . . . . . . . . . . . . . . . . . . . . . . . Retrieved Matter . | . . . . . . . . . . . . . . . . . . . . . . . . . . . . . . Retrieved Components 12 | . . . . . . 9 3 . . . . . . . . . . . . . . . . . . . . . . Parts Scanalyzed 8 | . . . 2 . 1 . 4 . . . . . . . . . 1 . . . . . . . . . . . . Part Schematics Acquired 8 | . . . 2 . . . 4 . . . . . . . . . 2 . . . . . . . . . . . . Parts Damaged 1 | . . . . . . . 1 . . . . . . . . . . . . . . . . . . . . . . Bothacking | -11 -10 -10 -9 -9 -8 -8 -7 -7 -7 -7 -7 -7 -6 -6 -6 -6 -5 -5 -5 -5 -4 -4 -4 -4 -4 -3 -3 -2 -1 ------------ Run | Jun Mat Min Mat Min Mat Sto Fac Was Fac Low Low Dat Pro Fac Low Low Fac Upp Upp Zhi Pro Fac Upp Upp War Pro Res Res Acc Used RIF Installer . | . . . . . . . . . . . . . . . . . . . . . . . . . . . . . . Robots Hacked 3 | . . . . . . . . . 2 . . . 1 . . . . . . . . . . . . . . . . Non-combat 2 | . . . . . . . . . 2 . . . . . . . . . . . . . . . . . . . . Combat 1 | . . . . . . . . . . . . . 1 . . . . . . . . . . . . . . . . Robot Hacks Applied 3 | . . . . . . . . . 2 . . . 1 . . . . . . . . . . . . . . . . parse_system 2 | . . . . . . . . . 1 . . . 1 . . . . . . . . . . . . . . . . find_recycling 1 | . . . . . . . . . 1 . . . . . . . . . . . . . . . . . . . . Relay Couplers Released 7 | . . . . . . . . . . . . . . . . . . . . . . . . . . . 2 5 . Machine Destruction 4 | . . . . . . . . . . . . . . . . . . . . . . . . . . . 2 2 . Programmers 3 | . . . . . . . . . . . . . . . . . . . . . . . . . . . . 3 . Fabnet Peak Effective % . | . . . . . . . . . . . . . . . . . . . . . . . . . . . . . . Robots Rewired . | . . . . . . . . . . . . . . . . . . . . . . . . . . . . . . Allies Hacked . | . . . . . . . . . . . . . . . . . . . . . . . . . . . . . . Hacks Repelled . | . . . . . . . . . . . . . . . . . . . . . . . . . . . . . . Allies | -11 -10 -10 -9 -9 -8 -8 -7 -7 -7 -7 -7 -7 -6 -6 -6 -6 -5 -5 -5 -5 -4 -4 -4 -4 -4 -3 -3 -2 -1 -------- Run | Jun Mat Min Mat Min Mat Sto Fac Was Fac Low Low Dat Pro Fac Low Low Fac Upp Upp Zhi Pro Fac Upp Upp War Pro Res Res Acc Total Allies 14 | . . . . 4 . . . . . . . . 1 3 . . 3 . . . . 1 . 2 . . . . . Largest Group 3 | . . . . 3 2 . . . . . . . 1 3 . . 2 2 . . . 1 . 1 . . . . . Highest-Rated Group 116 | . . . . 40 32 . . . . . . . 96 96 . . 36 36 . . . 10 . 116 . . . . . Highest-Rated Ally 116 | . . . . 31 16 . . . . . . . 96 96 . . 26 26 . . . 10 . 116 . . . . . Total Orders . | . . . . . . . . . . . . . . . . . . . . . . . . . . . . . . Ally Attacks 72 | . . . . 10 33 . . . . . . . 24 1 . . . . . . . . . 4 . . . . . Total Damage 1420 | . . . . 107 290 . . . . . . . 873 45 . . . . . . . . . 105 . . . . . Kills 14 | . . . . 1 5 . . . . . . . 7 . . . . . . . . . . 1 . . . . . Allies Corrupted 1 | . . . . 1 . . . . . . . . . . . . . . . . . . . . . . . . . Allies Melted 4 | . . . . . . . . . . . . . . . . . . . . . . . . . 1 . . 3 . Intel | -11 -10 -10 -9 -9 -8 -8 -7 -7 -7 -7 -7 -7 -6 -6 -6 -6 -5 -5 -5 -5 -4 -4 -4 -4 -4 -3 -3 -2 -1 ------- Run | Jun Mat Min Mat Min Mat Sto Fac Was Fac Low Low Dat Pro Fac Low Low Fac Upp Upp Zhi Pro Fac Upp Upp War Pro Res Res Acc Robot Analysis Total 8 | . . . 2 . . 1 . . . . . . . . . . . . . 4 . 1 . . . . . . . Derelict Logs Recovered 19 | . . 2 . 2 . . . . . 1 1 . 1 . 3 1 . 2 2 . 1 . 1 2 . . . . . Drone Launches 1 | . . . . . . . . . . . . . . . . . . . . . . . . . . . 1 . . Drone Recoveries . | . . . . . . . . . . . . . . . . . . . . . . . . . . . . . . Exploration | -11 -10 -10 -9 -9 -8 -8 -7 -7 -7 -7 -7 -7 -6 -6 -6 -6 -5 -5 -5 -5 -4 -4 -4 -4 -4 -3 -3 -2 -1 ------------- Run | Jun Mat Min Mat Min Mat Sto Fac Was Fac Low Low Dat Pro Fac Low Low Fac Upp Upp Zhi Pro Fac Upp Upp War Pro Res Res Acc Turns Passed 25299 | 66 1319 714 1999 1440 1979 1667 636 134 784 340 264 28 409 882 384 197 491 192 194 68 439 828 280 1077 1284 1518 1566 2191 1929 Spaces Moved 27308 | 42 657 457 963 728 985 1121 1671 290 1866 1098 943 103 941 2197 868 781 1195 678 628 229 969 1774 722 1055 803 818 697 1142 887 Core 12 | 12 . . . . . . . . . . . . . . . . . . . . . . . . . . . . . Treads 7890 | 30 657 181 806 728 985 667 . . . . . . . . . . . . . . . . . 400 423 818 298 1010 887 Legs . | . . . . . . . . . . . . . . . . . . . . . . . . . . . . . . Wheels 1344 | . . 276 157 . . . . . . . . . . . . . . . . . . . . . 380 . 399 132 . Hover 33 | . . . . . . . . . . . . . . . . . . . . . . . . 33 . . . . . Flight 18029 | . . . . . . 454 1671 290 1866 1098 943 103 941 2197 868 781 1195 678 628 229 969 1774 722 622 . . . . . Fastest Speed 20 | 50 160 105 105 160 155 27 25 25 25 25 25 25 25 25 25 25 21 21 21 21 20 20 30 30 135 167 108 150 155 Average Speed 69 | 128 160 126 157 170 156 103 25 25 25 25 25 25 25 25 25 25 24 24 24 24 24 24 31 81 148 167 154 159 155 Slowest Speed 246 | 160 160 160 240 240 165 245 25 25 95 25 25 25 25 25 25 25 25 25 25 25 25 35 45 160 167 167 170 246 155 Overloaded Moves . | . . . . . . . . . . . . . . . . . . . . . . . . . . . . . . Propulsion Burnouts . | . . . . . . . . . . . . . . . . . . . . . . . . . . . . . . Robots Hopped 56 | . . . . . . 1 5 . 6 . . . . 9 . . 18 . 1 . 2 14 . . . . . . . Cave-ins Triggered 1 | . . . . . . . . . . . . . . . . . . . . . . . . . . . 1 . . Teleports 1 | . . . . . . . . . . . . . . . . . . . . . . 1 . . . . . . . Exploration Rate (%) 67 | 3 94 99 77 92 80 98 34 86 46 89 92 74 83 55 88 86 35 75 59 62 59 30 80 73 92 90 16 44 23 Regions Visited 29 Branch Regions 17 Pre-discovered Areas 10 | . . 1 . . . . . . . . . 1 1 . 1 . . . 1 3 . . 1 1 . . . . . Known Exits Taken 21 | . . 1 . . . . . . 1 1 1 1 1 1 1 1 1 1 1 1 1 1 1 1 1 1 1 1 . Unknown Exits Taken 6 | 1 1 . 1 1 1 1 . . . . . . . . . . . . . . . . . . . . . . . Scrap Searched 31 | . . 2 . 1 . . . . . 3 4 . 1 . 2 4 . 2 1 . 2 . 3 3 . 3 . . . Spaces Dug 90 | . . . . . . 3 19 . 9 3 . . 4 11 3 . 8 4 2 . 4 11 . 1 . . 7 . 1 Terrain Destroyed 994 | . 21 16 8 102 63 16 19 233 9 3 . . 112 42 3 . 8 4 2 . 4 30 43 1 1 29 175 31 19 Melee 80 | . . . . . . 3 19 . 9 3 . . 4 11 3 . 8 4 2 . 4 9 . 1 . . . . . Projectile 83 | . . . . . . . . . . . . . 2 . . . . . . . . 4 . . 1 17 43 . 16 AOE 831 | . 21 16 8 102 63 13 . 233 . . . . 106 31 . . . . . . . 17 43 . . 12 132 31 3 Terrain Rammed . | . . . . . . . . . . . . . . . . . . . . . . . . . . . . . . Walls Destroyed . | . . . . . . . . . . . . . . . . . . . . . . . . . . . . . . Machines Disabled . | . . . . . . . . . . . . . . . . . . . . . . . . . . . . . . Actions | -11 -10 -10 -9 -9 -8 -8 -7 -7 -7 -7 -7 -7 -6 -6 -6 -6 -5 -5 -5 -5 -4 -4 -4 -4 -4 -3 -3 -2 -1 --------- Run | Jun Mat Min Mat Min Mat Sto Fac Was Fac Low Low Dat Pro Fac Low Low Fac Upp Upp Zhi Pro Fac Upp Upp War Pro Res Res Acc Total 31928 | 51 804 569 1286 844 1306 1472 1835 328 2132 1155 966 104 1078 2456 1023 781 1325 691 656 238 1137 2109 766 1249 877 933 1037 1438 1282 Wait 2630 | . 34 76 127 59 175 187 89 5 195 43 22 . 87 167 139 . 81 8 10 . 127 246 23 92 4 82 167 160 225 Move 27172 | 41 656 456 962 727 984 1118 1661 289 1854 1097 942 102 940 2178 867 780 1160 677 625 228 964 1747 721 1054 802 817 696 1141 886 Hop 51 | . . . . . . 1 5 . 5 . . . . 9 . . 16 . 1 . 2 12 . . . . . . . Pick Up 177 | 4 15 9 19 1 17 9 6 . 2 . . . 1 4 . . 8 . 1 3 . 17 2 14 13 2 12 13 5 Fast Attach 190 | 6 1 1 14 . 15 11 5 1 4 . . 1 5 10 1 1 7 . 1 . . 9 7 25 13 1 15 27 9 Attach 88 | . 3 3 6 6 3 5 6 4 . . . . 3 3 . . 2 . . 2 1 16 4 2 . . 8 4 7 Detach 53 | . . . 1 . 5 5 5 5 1 . . . 2 . . . . . . . . 8 2 2 4 . 2 6 5 Swap 218 | . 8 7 19 8 13 17 1 . 17 1 . . 8 15 4 . 11 . 4 4 12 4 . 2 7 4 11 10 31 Drop 267 | . 4 5 41 . 25 21 7 . 6 . . 1 4 14 1 . 13 . 3 1 . 13 3 11 23 2 19 39 11 Fire 690 | . 71 12 96 43 69 64 . 24 . . . . 20 5 . . 1 . . . . 8 4 3 10 16 106 38 100 Melee 246 | . . . . . . 16 30 . 28 4 2 . 8 33 5 . 25 6 4 . 12 27 . 44 1 . . . 1 Ram . | . . . . . . . . . . . . . . . . . . . . . . . . . . . . . . Kick . | . . . . . . . . . . . . . . . . . . . . . . . . . . . . . . Crush 15 | . 12 . 1 . . . . . . . . . . . . . . . . . . . . . . . 1 . 1 Escape Stasis 73 | . . . . . . 18 18 . . . . . . 18 . . . . . . 19 . . . . . . . . Rewire 2 | . . . . . . . 2 . . . . . . . . . . . . . . . . . . . . . . Trap 56 | . . . . . . . . . 20 10 . . . . 6 . 1 . 7 . . 2 . . . 9 . . 1 Miscellaneous . | . . . . . . . . . . . . . . . . . . . . . . . . . . . . . . Route ------- -11/Junkyard -10/Materials (discovered 4 exits: *Mat x3 / *Min) -10/Mines (discovered 2 exits: *Mat x2) -9/Materials (discovered 3 exits: *Mat x2 / [*Min]) -9/Mines (discovered 3 exits: *Mat x2 / *Exi) -8/Materials (discovered 3 exits: *Fac x2 / *Sto) -8/Storage (discovered 2 exits: *Fac / *Rec) -7/Factory -7/Waste -7/Factory (discovered 3 exits: *Fac x2 / *Low) -7/Lower Caves -7/Lower Caves (discovered 2 exits: *Fac / *Dat) -7/Data Miner -6/Proximity Caves -6/Factory (discovered 4 exits: *Fac / *Low / *Ext x2) -6/Lower Caves -6/Lower Caves (discovered 2 exits: *Fac / *Zio) -5/Factory (discovered 4 exits: *Fac x2 / *Upp x2) -5/Upper Caves -5/Upper Caves (discovered 2 exits: Fac / *Zhi) -5/Zhirov -4/Proximity Caves -4/Factory (discovered 3 exits: *Upp x2 / Arm) -4/Upper Caves -4/Upper Caves (discovered 2 exits: *Res / *War) -4/Warlord -3/Proximity Caves -3/Research -2/Research (discovered 3 exits: *Acc x3) -1/Access To Epsilon Eridani History --------- Turn | Location | Event 2 | -11/Junkyard | Met Revision 17 40 | -11/Junkyard | Discovered new exit (range 16) 67 | -11/Junkyard | Entered Materials 310 | -10/Materials | Build established: Mutant 446 | -10/Materials | Discovered new exit (range 9) 563 | -10/Materials | Discovered new exit (range 10) 1155 | -10/Materials | Discovered new exit (range 10) 1230 | -10/Materials | Core integrity fell below 50% 1258 | -10/Materials | Lost 4 parts (1p1n1u1w) 1360 | -10/Materials | Discovered new exit (range 16) 1386 | -10/Materials | Entered Mines 1572 | -10/Mines | Discovered new exit (range 12) 1663 | -10/Mines | Learned 2 Materials zone layouts 1757 | -10/Mines | Discovered new exit (range 9) 1768 | -10/Mines | Learned location of Storage (-8) 1787 | -10/Mines | Identified exit to Materials 1865 | -10/Mines | Received a Rocket Launcher from a helpful Derelict 1908 | -10/Mines | Met a Derelict who couldn't figure out how to use a Trap Extractor 2100 | -10/Mines | Entered Materials 2100 | -9/Materials | Evolved 2 slots: Utility x1, Weapon x1 2536 | -9/Materials | Build established: Skirmisher 2631 | -9/Materials | Discovered new exit (range 16) 3251 | -9/Materials | Discovered new exit (range 11) 3435 | -9/Materials | Repaired Lgt. Armor Plating 3489 | -9/Materials | Repaired Cld. Ion Engine 3723 | -9/Materials | Discovered new exit (range 16) 4099 | -9/Materials | Entered Mines 4108 | -9/Mines | Met a Derelict bent on vengeance 4147 | -9/Mines | Discovered new exit (range 7) 4165 | -9/Mines | Received a Mining Laser from a helpful Derelict 4200 | -9/Mines | Assembled infested the area 4222 | -9/Mines | Core integrity fell below 50% 4267 | -9/Mines | Destroyed 22 combat bots 4343 | -9/Mines | Lost 4 parts (1n3w) 4618 | -9/Mines | Build established: Mutant 4637 | -9/Mines | Learned Materials emergency access door positions 4677 | -9/Mines | Found a damaged Exp. Sensor Array with a note attached 4680 | -9/Mines | Found Prototype Device 4699 | -9/Mines | Discovered new exit (range 10) 4797 | -9/Mines | Identified exit to Exiles 4874 | -9/Mines | Assisted by bots powering up and referring to "LRC-V3" 5072 | -9/Mines | Deemed a non-threat by the Exiles lab entrance 5539 | -9/Mines | Entered Materials 5539 | -8/Materials | Accompanied by 2 allies 5539 | -8/Materials | Evolved 2 slots: Propulsion x2 5929 | -8/Materials | Build established: Skirmisher 6049 | -8/Materials | Discovered new exit (range 8) 6061 | -8/Materials | Discovered new exit (range 14) 6212 | -8/Materials | Repaired Broken Cooling System 6265 | -8/Materials | Repaired Imp. EM Shotgun 6298 | -8/Materials | Repaired Imp. Treads 6706 | -8/Materials | Discovered new exit (range 15) 7211 | -8/Materials | Build established: Tank 7429 | -8/Materials | Identified Exp. Sensor Array 7518 | -8/Materials | Entered Storage 7519 | -8/Storage | Identified exit to Recycling 8091 | -8/Storage | Used back door to open Recycling access 8493 | -8/Storage | Discovered new exit (range 16) 8718 | -8/Storage | First assault squad dispatched 9033 | -8/Storage | Repaired Broken Exp. Sensor Array 9174 | -8/Storage | Build established: Sprinter 9185 | -8/Storage | Entered Factory 9185 | -7/Factory | Evolved 2 slots: Propulsion x1, Utility x1 9772 | -7/Factory | Discovered new exit (range 4) 9773 | -7/Factory | Identified exit to Factory 9821 | -7/Factory | Sucked down chute 9821 | -7/Factory | Entered Waste 9834 | -7/Waste | Spotted C-40 Crusher 9836 | -7/Waste | Spotted C-40 Crusher 9843 | -7/Waste | Destroyed C-40 Crusher 9847 | -7/Waste | Spotted C-40 Crusher 9854 | -7/Waste | Destroyed C-40 Crusher 9861 | -7/Waste | Spotted C-40 Crusher 9869 | -7/Waste | Destroyed C-40 Crusher 9879 | -7/Waste | Spotted C-40 Crusher 9887 | -7/Waste | Destroyed C-40 Crusher 9900 | -7/Waste | Spotted C-40 Crusher 9900 | -7/Waste | Destroyed C-40 Crusher 9908 | -7/Waste | Destroyed C-40 Crusher 9928 | -7/Waste | Discovered new exit (range 12) 9954 | -7/Waste | Identified exit to Factory 9955 | -7/Waste | Entered Factory 10063 | -7/Factory | Fabricated Lgt. Antimatter Reactor (x2) 10161 | -7/Factory | Discovered new exit (range 15) 10165 | -7/Factory | Identified exit to Lower Caves 10404 | -7/Factory | Repaired Broken Exp. Sensor Array 10485 | -7/Factory | Repaired Broken Impact Mace 10521 | -7/Factory | Discovered exit to Factory (range 14) 10658 | -7/Factory | Discovered exit to Factory (range 11) 10721 | -7/Factory | Fabricated Imp. System Guard (x2) 10739 | -7/Factory | Entered Lower Caves 10871 | -7/Lower Caves | Attracted the attention of an 0b10 checkpoint 10938 | -7/Lower Caves | Discovered new exit (range 3) 11079 | -7/Lower Caves | Identified exit to Lower Caves 11079 | -7/Lower Caves | Entered another Lower Caves area 11108 | -7/Lower Caves | Discovered exit to Factory (range 15) 11308 | -7/Lower Caves | Learned 4 Factory zone layouts 11337 | -7/Lower Caves | Discovered new exit (range 11) 11342 | -7/Lower Caves | Identified exit to Data Miner 11343 | -7/Lower Caves | Entered Data Miner 11343 | -7/Data Miner | Discovered new exit (range 6) 11352 | -7/Data Miner | Met Data Miner 11361 | -7/Data Miner | Learned location of Section 7 (-2) 11361 | -7/Data Miner | Acquired the access code to Warlord's prototype stash 11363 | -7/Data Miner | Received God Mode back door access code from Data Miner 11371 | -7/Data Miner | Identified exit to Proximity Caves 11371 | -7/Data Miner | Entered Proximity Caves 11410 | -6/Proximity Caves | Learned location of Extension (-6) 11474 | -6/Proximity Caves | Escorted by Enhanced Grunt 11496 | -6/Proximity Caves | Acquired the password to a Derelict Tinkerer's latest research 11503 | -6/Proximity Caves | Found Prototype Special Weapon 11503 | -6/Proximity Caves | Identified Molecular Deconstructor 11578 | -6/Proximity Caves | Attracted the attention of an 0b10 checkpoint 11597 | -6/Proximity Caves | Discovered exit to Factory (range 10) 11635 | -6/Proximity Caves | Caught by Unaware searching for contraband prototypes 11658 | -6/Proximity Caves | Caught by Unaware searching for contraband prototypes 11780 | -6/Proximity Caves | Entered Factory 11780 | -6/Factory | Accompanied by 1 ally 11780 | -6/Factory | Evolved 2 slots: Utility x2 11781 | -6/Factory | Identified exit to Lower Caves 11889 | -6/Factory | Found Prototype Launcher 11889 | -6/Factory | Identified Rocket Array 12147 | -6/Factory | Discovered new exit (range 5) 12148 | -6/Factory | Identified exit to Extension 12156 | -6/Factory | Discovered new exit (range 5) 12156 | -6/Factory | Identified exit to Factory 12217 | -6/Factory | System Shield fried by hacking feedback 12276 | -6/Factory | Fabricated Impulse Thruster? 12513 | -6/Factory | Build established: Scout 12562 | -6/Factory | Discovered exit to Extension (range 16) 12592 | -6/Factory | Imp. System Shield fried by hacking feedback 12649 | -6/Factory | Repaired Imp. VTOL Module 12662 | -6/Factory | Entered Lower Caves 12992 | -6/Lower Caves | Encountered a Warlord checkpoint 13019 | -6/Lower Caves | Learned Factory stockpile data 13032 | -6/Lower Caves | Discovered new exit (range 14) 13035 | -6/Lower Caves | Identified exit to Lower Caves 13046 | -6/Lower Caves | Entered another Lower Caves area 13052 | -6/Lower Caves | Learned Factory trap positions 13052 | -6/Lower Caves | Discovered exit to Factory (range 10) 13082 | -6/Lower Caves | Encountered a Warlord checkpoint 13122 | -6/Lower Caves | Discovered new exit (range 8) 13124 | -6/Lower Caves | Identified exit to Zion 13243 | -6/Lower Caves | Entered Factory 13243 | -5/Factory | Evolved 2 slots: Propulsion x1, Utility x1 13244 | -5/Factory | Identified exit to Upper Caves 13245 | -5/Factory | Loaded intel: 103 trap records 13499 | -5/Factory | Discovered new exit (range 3) 13500 | -5/Factory | Identified exit to Factory 13500 | -5/Factory | Discovered exit to Factory (range 16) 13597 | -5/Factory | Build established: Hacker-Scout 13672 | -5/Factory | Incoming investigation squad redirected 13689 | -5/Factory | Fabricated Adv. Hacking Suite (x1) 13734 | -5/Factory | Entered Upper Caves 13734 | -5/Upper Caves | Accompanied by 2 allies 13861 | -5/Upper Caves | Learned Factory terminal intel 13897 | -5/Upper Caves | Spotted B-75 Beast 13921 | -5/Upper Caves | Discovered new exit (range 15) 13922 | -5/Upper Caves | Learned Factory stockpile data 13926 | -5/Upper Caves | Encountered a Warlord checkpoint 13926 | -5/Upper Caves | Identified exit to Upper Caves 13926 | -5/Upper Caves | Entered another Upper Caves area 14089 | -5/Upper Caves | Discovered new exit (range 9) 14097 | -5/Upper Caves | Found Alien Artifact 14099 | -5/Upper Caves | Identified exit to Zhirov 14120 | -5/Upper Caves | Entered Zhirov 14120 | -5/Zhirov | Discovered new exit (range 3) 14130 | -5/Zhirov | Learned location of Quarantine (-2) 14130 | -5/Zhirov | Learned location of Testing (-3) 14130 | -5/Zhirov | Learned location of Command (-1) 14167 | -5/Zhirov | Identified Core Expander 14167 | -5/Zhirov | Installed Core Expander, added new Weapon slot 14170 | -5/Zhirov | Found Alien Artifact 14174 | -5/Zhirov | Identified Integrated Dissipator 14174 | -5/Zhirov | Installed Integrated Dissipator, increased core heat dissipation (+20) 14177 | -5/Zhirov | Found Alien Artifact 14187 | -5/Zhirov | Identified exit to Proximity Caves 14188 | -5/Zhirov | Entered Proximity Caves 14192 | -4/Proximity Caves | Spotter reported a threat 14193 | -4/Proximity Caves | Spotter reported a threat 14246 | -4/Proximity Caves | Spotter reported a threat 14623 | -4/Proximity Caves | Discovered exit to Factory (range 16) 14627 | -4/Proximity Caves | Entered Factory 14627 | -4/Factory | Evolved 2 slots: Utility x2 14628 | -4/Factory | Identified exit to Armory 14630 | -4/Factory | Loaded intel: 26 terminal locations 14877 | -4/Factory | Search patrols dispatched 14984 | -4/Factory | Identified Transdimensional Reconstructor 14984 | -4/Factory | Warped through subspace 15051 | -4/Factory | Assembled infested ambush trap array 15054 | -4/Factory | Incoming investigation squad redirected 15086 | -4/Factory | Incoming investigation squad redirected 15091 | -4/Factory | Identified exit to Upper Caves 15214 | -4/Factory | Lost 6 parts (1p3n1u1w) 15242 | -4/Factory | Build established: Hacker-Sprinter 15270 | -4/Factory | Fabricated Exp. Sensor Array? 15273 | -4/Factory | Lost 4 parts (2n1u1w) 15377 | -4/Factory | Search patrols dispatched 15445 | -4/Factory | Core integrity fell below 50% 15455 | -4/Factory | Entered Upper Caves 15459 | -4/Upper Caves | Encountered a Warlord checkpoint 15476 | -4/Upper Caves | Lost 5 parts (2n3u) 15656 | -4/Upper Caves | Discovered new exit (range 9) 15658 | -4/Upper Caves | Ambushed by wild Derelicts 15658 | -4/Upper Caves | Identified exit to Upper Caves 15718 | -4/Upper Caves | Attracted the attention of an 0b10 outpost 15735 | -4/Upper Caves | Entered another Upper Caves area 15758 | -4/Upper Caves | Discovered new exit (range 9) 15760 | -4/Upper Caves | Identified exit to Research 16032 | -4/Upper Caves | Core integrity fell below 20% 16070 | -4/Upper Caves | Spotted B-86 Titan 16118 | -4/Upper Caves | Destroyed B-86 Titan 16143 | -4/Upper Caves | Lost 4 parts (1p2n1u) 16433 | -4/Upper Caves | Build established: Scavenger-Mutant 16489 | -4/Upper Caves | Learned location of 1 exit from Research 16496 | -4/Upper Caves | Attracted the attention of an 0b10 checkpoint 16794 | -4/Upper Caves | Discovered new exit (range 12) 16810 | -4/Upper Caves | Identified exit to Warlord 16812 | -4/Upper Caves | Entered Warlord 16867 | -4/Warlord | System corruption cleaned by Quarantine Array 17223 | -4/Warlord | Visited the Vortex Lab 17232 | -4/Warlord | Found Prototype Energy Gun 17232 | -4/Warlord | Identified Vortex Rifle 17236 | -4/Warlord | Warlord's base attacked by MAIN.C 17237 | -4/Warlord | Found Vortex Rifle 17243 | -4/Warlord | Found Prototype Energy Gun 17243 | -4/Warlord | Identified Vortex Rail 17252 | -4/Warlord | Found Vortex Rail 17586 | -4/Warlord | Warlord forces counterattacked 17676 | -4/Warlord | Met Warlord 17690 | -4/Warlord | Opened Warlord's prototype stash 17703 | -4/Warlord | Found Exp. Targeting Computer 17710 | -4/Warlord | Found Prototype Hackware 17716 | -4/Warlord | Found Prototype Device 17716 | -4/Warlord | Identified Thermal Barrier 17719 | -4/Warlord | Found Prototype Processor 17719 | -4/Warlord | Identified Exp. Core Analyzer 17730 | -4/Warlord | Found Prototype Reactor 17908 | -4/Warlord | Spotted Striker 17911 | -4/Warlord | Warlord base infiltrated, sounded retreat 17920 | -4/Warlord | Spotted Striker 17920 | -4/Warlord | Destroyed Striker 17960 | -4/Warlord | Lost 3 parts (2n1u) 18056 | -4/Warlord | Spotted Striker 18058 | -4/Warlord | Spotted Striker 18079 | -4/Warlord | Discovered new exit (range 11) 18094 | -4/Warlord | Identified exit to Proximity Caves 18096 | -4/Warlord | Entered Proximity Caves 18834 | -3/Proximity Caves | Spotted B-86 Titan 18885 | -3/Proximity Caves | Destroyed B-86 Titan 19520 | -3/Proximity Caves | Discovered exit to Research (range 7) 19614 | -3/Proximity Caves | Entered Research 19614 | -3/Research | Evolved 2 slots: Power x1, Utility x1 19615 | -3/Research | Identified exit to Research 20177 | -3/Research | Garrison activated, responded to threat 20276 | -3/Research | Lost 6 parts (4u2w) 20277 | -3/Research | Destroyed 7 combat bots 20364 | -3/Research | First assault squad dispatched 20373 | -3/Research | Incoming assault squad redirected 20373 | -3/Research | Destroyed 9 combat bots 20375 | -3/Research | Lost 7 parts (1p1n3u2w) 20378 | -3/Research | Crushed by falling debris 20384 | -3/Research | Incoming assault squad redirected 20532 | -3/Research | Found Antimissile System 21180 | -3/Research | Entered another Research area 21180 | -2/Research | Warlord forces began assault on 0b10 21180 | -2/Research | Evolved 2 slots: Utility x2 21186 | -2/Research | Build established: Trapper-Mutant 21290 | -2/Research | Research machine network offline 21404 | -2/Research | Met up with Warlord 21445 | -2/Research | Spotted Executioner 21562 | -2/Research | Build established: Trapper-Skirmisher 21823 | -2/Research | Borebot progress halted 21914 | -2/Research | Spotted Executioner 21916 | -2/Research | Destroyed Executioner 21916 | -2/Research | Spotted Striker 21934 | -2/Research | Destroyed Striker 21938 | -2/Research | Discovered new exit (range 11) 21960 | -2/Research | Identified Vortex Chain Reactor 22081 | -2/Research | Discovered new exit (range 6) 22099 | -2/Research | Identified exit to Access 22100 | -2/Research | Borebot progress halted 22388 | -2/Research | Spotted Striker 22389 | -2/Research | Build established: Trapper-Tank 22431 | -2/Research | Spotted Executioner 22433 | -2/Research | Destroyed Executioner 22433 | -2/Research | Destroyed Executioner 22601 | -2/Research | Spotted B-90 Cyclops 22630 | -2/Research | Warlord destroyed during the assault 22640 | -2/Research | Destroyed B-90 Cyclops 22873 | -2/Research | Spotted Executioner 22875 | -2/Research | Spotted Executioner 22886 | -2/Research | Destroyed Executioner 22893 | -2/Research | Destroyed Executioner 23122 | -2/Research | Discovered exit to Access (range 16) 23125 | -2/Research | Spotted B-90 Cyclops 23157 | -2/Research | Destroyed B-90 Cyclops 23223 | -2/Research | System corruption reached 10% 23371 | -2/Research | Entered Access 23371 | -1/Access | Evolved 2 slots: Utility x2 23470 | -1/Access | Build established: Scavenger-Tank 23877 | -1/Access | Build established: Trapper-Mutant 23954 | -1/Access | Identified System Mapper 24053 | -1/Access | Energy Cycler disabled 24484 | -1/Access | Build established: Trapper-Gunner 24691 | -1/Access | Found Unknown Device 24691 | -1/Access | Identified Quantum Capacitor 25257 | -1/Access | Discovered new exit (range 6) 25265 | -1/Access | Identified exit to Surface 25287 | -1/Access | Spotted B-99 Colossus 25300 | *** | Escaped! Last Messages --------------- 25257_ EXIT=FOUND 25261_ System corrupted: Component data lost. 25265_ EXIT=IDENTIFIED: SURFACE 25268_ Sealed Heavy Doors breached. 25278_ K-01 Serf cleans the Terminal. 25287_ Slug penetrates Sealed Heavy Doors. 25287_ Penetrated by Slug. 25291_ System corrupted: Enh. Nova Cannon failed to cycle. 25293_ System corrupted: Energy discharge (-16). 25293_ Activated siege mode. 25293_ U-05 Engineer builds a Wall. 25294_ Mak. Sensor Array destroyed. 25294_ Energy Filter destroyed. 25294_ Critical hit (Blast). 25294_ Slug penetrates Sealed Heavy Doors. 25294_ Penetrated by Slug. 25297_ U-05 Engineer builds a Wall. 25298_ Penetrated by Slug. 25298_ Slug penetrates Sealed Heavy Doors. 25300_ Ended siege mode. Map ----- +----------------------------------------------------+ | ?????????????????????????????????????????????????? | | ?????????????????????????????????????????????????? | | ?????????????????????????????????????????????????? | | ?????????????????????????????????????????????????? | | ?????????????????????????????????????????????????? | | ?????????????????????????????????????????????????? | | ?????????????????????????????????????????????????? | | ?????????????????????????????????????????????????? | | ?????????????????????????????????????????????????? | | ?????????????????????????????????????????????????? | | ?????????????????????????????????????????????????? | | ?????????????????????????????????????????????????? | | ?????????????????????????????????????????????????? | | ?????????????????????????????????????? ?????????? | | ?????????????????????????????????????? #????????? | | ?????????????????????????????????????? #????????? | | ?????????????????????????????????????? #????????? | | ?????????????????????????????????????? #????????? | | ?????????????????????????????????????? #????????? | | ?????????????????????????????###?????? #????????? | | ????????????????????########## #######k #????????? | | ????????????????????" #????????? | | ????????????????????" u#????????? | | ????????????????????" % #????????? | | ????? ??????????????" % #????????? | | ??? ???????????"" "@ #????????? | | ??# ????? "" #????????? | | ??# ? u#????????? | | ??# ?? BB """" #????????? | | ??# ?? ??????" """ """ #????????? | | ### ????????????" """T""" #????????? | | ????????????########## ####### #????????? | | ?????????????????????###?????# #????????? | | [= ?????????????################# #????????? | | ? !%| ?????????????+ # #????????? | | ####!""#####?????????# *# #????????? | | [ ! #?????????# # #???###??? | | #?????????# # #?? "" ??? | | #?????????# # #?? "" ??? | | #?????????# # #? """"??? | | #?????????# # #? """"??? | | #?????????# # # """" ?? | | #?????????# # # """" ?? | | #?????????# # + """" ?? | | #????##################+### # "" | | #????# # # | | ###### # #? | | + + # ##### #? = | | ##########+#### # # #???# #?? | | ?????????# #??# # # #???# #??####### | +----------------------------------------------------+ Best States ------------- Heat Dissipation 134 Coolant Potential 80 Energy Generation 55 Energy Capacity 1050 Matter Stores 600 Matter Capacity 600 Sight Range 22 Robot Scan Range 20 Terrain Scan Range 20 Terrain Scan Density 10 Jamming Range 14 Power Amplification 30 Additional Mass Support 12 EM Shielding 2 Corruption Block 15 Armor Coverage 2400 Utility Shielding 66 Point Defense Rating 240 Evasion (%) 74 Targeting Accuracy 20 Melee Accuracy 8 Core Analysis 8 Recoil Reduction 12 Energy Filtering 30 Offensive Hacking 28 Defensive Hacking 14 Trap Extractor Capacity 8 Item Schematics ----------------- Huge Storage Unit | -9/Materials | Scanalyzed Arm. Treads | -9/Materials | Scanalyzed Hacking Suite | -8/Storage | Hacked Imp. VTOL Module | -7/Factory | Scanalyzed Imp. Propulsion Shielding | -7/Factory | Scanalyzed Enh. Autogun | -7/Factory | Scanalyzed Imp. Trap Extractor | -7/Factory | Scanalyzed Lgt. Regenerative Plating | -7/Data Miner | Free Combat Drone Bay | -7/Data Miner | Free Cld. Cesium-ion Thruster | -7/Data Miner | Free Exp. Targeting Computer | -7/Data Miner | Free Scatter Rocket Array | -7/Data Miner | Free Nuclear Pulse Array | -7/Data Miner | Free Imp. Kinecellerator | -7/Data Miner | Free Wave Gun | -7/Data Miner | Free Imp. Remote Datajack | -7/Data Miner | Free Mic. Fission Core | -7/Data Miner | Free Lgt. Antimatter Reactor | -7/Data Miner | Free Exp. Sensor Array | -5/Factory | Scanalyzed Adv. Hacking Suite | -5/Factory | Hacked Cld. VTOL Module | -5/Factory | Hacked Adv. Signal Interpreter | -5/Factory | Scanalyzed Assault Drone Bay | -5/Zhirov | Free Exp. Heat Sink | -5/Zhirov | Free Exp. Optical Array | -5/Zhirov | Free Imp. Arc Thrower | -5/Zhirov | Free Robot Schematics ------------------ M-28 Smith | -7/Data Miner | Free R-10 Processor | -7/Data Miner | Free H-55 Commando | -7/Data Miner | Free Y-54 Guardian | -7/Data Miner | Free Fabricated ------------ Lgt. Antimatter Reactor | x2 | -7/Factory | Preloaded Imp. System Guard | x2 | -7/Factory | Preloaded Impulse Thruster | x2 | -6/Factory | Preloaded Adv. Hacking Suite | x1 | -5/Factory Exp. Sensor Array | x1 | -4/Factory Alien Tech Used ----------------- Core Expander Integrated Dissipator Transdimensional Reconstructor Achievements -------------- Hehehe Killing Spree Ride The Lightning Turtlemind Ultimate Loadout Challenges ------------ None Game ------ Seed FluxMediumStabilizer Manual? 0 Play Time 07:14:01 Cumulative 204.5 hours Start 2023.04.16 @ 21:44:09 End 2023.05.11 @ 19:25:48 Sessions 21 Manual Loads 0 Difficulty Rogue Special Mode None Game No. 98 Rogue 98 Adventurer 0 Explorer 0 Win Type 0 Total 3 Types 3/0/0/0/0/0/0/0/0 Lore% 56 Gallery% 69 Achievement% 57 Wizard Run 0 Options --------- ASCII 0 Keyboard 1 Movement Vi Keybinds 0 Fullscreen 1 Font 12/Smallcaps Map View 83x54 Tactical HUD 1 Map Filters NONE Filters NONE Steam 1 RUN: be231a23-8536-46b6-9535-7e0e34be22f9